bitfinex/quotes_BTCUSD_20251209
["timestamp","ask_amount","ask_price","bid_price","bid_amount"]
[1765319044301,0.21587582,92646.0,92643.0,0.0481472]
[1765319044302,0.21588014,92644.0,92643.0,0.0511472]
[1765319044503,0.22766959,92646.0,92643.0,0.0491472]
[1765319044758,0.21587868,92645.0,92643.0,0.0491472]
[1765319044886,0.22766959,92646.0,92644.0,0.21588014]
[1765319044887,0.001,92646.0,92644.0,0.21588014]
[1765319045292,0.001,92646.0,92644.0,0.2158798]
[1765319045516,0.001,92646.0,92645.0,0.07570483]
[1765319045729,0.03236852,92650.0,92647.0,0.01079365]
[1765319046294,0.24823501,92650.0,92647.0,0.22666484]
[1765319046536,0.24823501,92650.0,92647.0,0.01079365]
[1765319046738,0.02157522,92650.0,92647.0,0.22666416]
[1765319046948,0.22665003,92654.0,92651.0,0.21586338]
[1765319047485,0.22665003,92654.0,92651.0,0.22665657]
[1765319047756,0.21585817,92654.0,92651.0,0.22665657]
[1765319047959,0.2158594,92653.0,92650.0,0.22665909]
[1765319048173,0.21585934,92653.0,92651.0,0.21686377]
[1765319048376,0.01179284,92654.0,92651.0,0.21686346]
[1765319048584,0.001,92654.0,92652.0,0.29247743]
[1765319048883,0.21685697,92654.0,92652.0,0.07661624]
[1765319049100,0.002,92654.0,92652.0,0.29247661]
[1765319049312,0.001,92654.0,92653.0,0.21585917]
[1765319049531,0.02157522,92657.0,92653.0,0.01079295]
[1765319049724,0.01079237,92658.0,92654.0,0.26021484]
[1765319049934,0.21585451,92655.0,92654.0,0.03356516]
[1765319050779,0.21585451,92655.0,92654.0,0.03556516]
[1765319051402,0.002,92655.0,92654.0,0.03656516]
[1765319052023,0.002,92655.0,92654.0,0.03456516]
[1765319052381,0.21885451,92655.0,92654.0,0.03556516]
[1765319052585,0.21885451,92655.0,92654.0,0.002]
[1765319052798,0.2811826,92655.0,92654.0,0.002]
[1765319056168,0.2584626,92655.0,92654.0,0.002]
[1765319056573,0.2811826,92655.0,92654.0,0.002]
[1765319058734,0.25960738,92655.0,92654.0,0.002]
[1765319058894,0.2811826,92655.0,92654.0,0.002]
[1765319071457,0.2791826,92655.0,92654.0,0.001]
[1765319071660,0.01079424,92642.0,92640.0,0.21588946]
[1765319071854,0.01079447,92640.0,92637.0,0.00022966]
[1765319072061,0.01079435,92641.0,92638.0,0.22668693]
[1765319072260,0.01079447,92640.0,92637.0,0.00022966]
[1765319072488,0.22668449,92640.0,92637.0,0.22691998]
[1765319072622,0.22667926,92642.0,92638.0,0.24074516]
[1765319072828,0.21588826,92641.0,92638.0,0.24074516]
[1765319073033,0.001,92640.0,92639.0,0.2158914]
[1765319073242,0.001,92640.0,92639.0,0.21589179]
[1765319073911,0.21589179,92639.0,92637.0,0.00122966]
[1765319074105,0.26464934,92638.0,92637.0,0.00122966]
[1765319074315,0.28849934,92638.0,92637.0,0.00022966]
[1765319074974,0.298537,92638.0,92637.0,0.00022966]
[1765319075115,0.28949934,92638.0,92637.0,0.00222966]
[1765319075311,0.29382219,92638.0,92637.0,0.00222966]
[1765319075553,0.29282219,92638.0,92637.0,0.00022966]
[1765319075752,0.29382219,92638.0,92637.0,0.00322966]
[1765319076161,0.30990219,92638.0,92637.0,0.00022966]
[1765319076729,0.30990219,92638.0,92637.0,0.00122966]
[1765319076730,0.31090219,92638.0,92637.0,0.00122966]
[1765319077137,0.30990219,92638.0,92637.0,0.00022966]
[1765319077620,0.30990219,92638.0,92637.0,0.00522966]
[1765319077621,0.31190219,92638.0,92637.0,0.00522966]
[1765319078816,0.29482219,92638.0,92637.0,0.00522966]
[1765319079023,0.31190219,92638.0,92637.0,0.00522966]
[1765319081387,0.29482219,92638.0,92637.0,0.00522966]
[1765319081591,0.29600042,92638.0,92637.0,0.00522966]
[1765319082173,0.21789412,92638.0,92637.0,0.00522966]
[1765319082771,0.23946934,92638.0,92637.0,0.00522966]
[1765319083515,0.27837934,92638.0,92637.0,0.00522966]
[1765319085471,0.283609,92638.0,92637.0,0.00522966]
[1765319085714,0.574309,92638.0,92637.0,0.00522966]
[1765319085948,1.574309,92638.0,92637.0,0.00522966]
[1765319086151,1.59736567,92638.0,92637.0,0.00522966]
[1765319086370,1.60637136,92638.0,92637.0,0.00422966]
[1765319086562,1.60637136,92638.0,92637.0,0.00522966]
[1765319086563,1.60837136,92638.0,92637.0,0.00522966]
[1765319087361,1.60737136,92638.0,92637.0,0.00122966]
[1765319087560,1.60837136,92638.0,92637.0,0.00222966]
[1765319088162,1.59836567,92638.0,92637.0,0.00222966]
[1765319091563,1.59835364,92638.0,92637.0,0.00222966]
[1765319091765,1.575309,92638.0,92637.0,0.00222966]
[1765319091965,0.592389,92638.0,92637.0,0.00222966]
[1765319092167,1.592389,92638.0,92637.0,0.00222966]
[1765319092944,0.592389,92638.0,92637.0,0.00222966]
[1765319093165,1.592389,92638.0,92637.0,0.00222966]
[1765319093407,1.61543469,92638.0,92637.0,0.00222966]
[1765319093592,1.592389,92638.0,92637.0,0.00222966]
[1765319093963,0.592389,92638.0,92637.0,0.00222966]
[1765319094165,1.592389,92638.0,92637.0,0.00222966]
[1765319094506,1.325489,92638.0,92637.0,0.00222966]
[1765319094661,1.297509,92638.0,92637.0,0.00222966]
[1765319094868,1.314589,92638.0,92637.0,0.00222966]
[1765319095064,1.314389,92638.0,92637.0,0.00222966]
[1765319096063,1.592389,92638.0,92637.0,0.00222966]
[1765319096261,1.420289,92638.0,92637.0,0.00222966]
[1765319096619,1.44334291,92638.0,92637.0,0.00222966]
[1765319096967,1.420289,92638.0,92637.0,0.00222966]
[1765319097169,0.575309,92638.0,92637.0,0.00222966]
[1765319098919,0.592389,92638.0,92637.0,0.00222966]
[1765319100341,1.592389,92638.0,92637.0,0.00222966]
[1765319100504,1.62548395,92638.0,92637.0,0.00222966]
[1765319102998,1.13978395,92638.0,92637.0,0.00222966]
[1765319103478,1.62548395,92638.0,92637.0,0.00222966]
[1765319103667,1.60840395,92638.0,92637.0,0.00222966]
[1765319103809,1.62548395,92638.0,92637.0,0.00222966]
[1765319107505,0.62548395,92638.0,92637.0,0.00222966]
[1765319107699,1.62548395,92638.0,92637.0,0.00222966]
[1765319108496,0.62548395,92638.0,92637.0,0.00222966]
[1765319108708,1.62548395,92638.0,92637.0,0.00222966]
[1765319110881,1.15578395,92638.0,92637.0,0.00222966]
[1765319111493,1.13870395,92638.0,92637.0,0.00222966]
[1765319111697,0.73490395,92638.0,92637.0,0.00222966]
[1765319111898,0.75198395,92638.0,92637.0,0.00222966]
[1765319112721,1.62548395,92638.0,92637.0,0.00222966]
[1765319114385,1.60840395,92638.0,92637.0,0.00222966]
[1765319114587,0.58682873,92638.0,92637.0,0.00222966]
[1765319114834,0.60317429,92638.0,92637.0,0.00222966]
[1765319115163,0.31247429,92638.0,92637.0,0.00222966]
[1765319115302,0.28839537,92638.0,92637.0,0.00122966]
[1765319115494,0.27837934,92638.0,92637.0,0.00122966]
[1765319115832,0.27737934,92638.0,92637.0,0.00222966]
[1765319116061,0.27837934,92638.0,92637.0,0.00122966]
[1765319116266,0.25452934,92638.0,92637.0,0.00322966]
[1765319116445,0.27896934,92638.0,92637.0,0.00322966]
[1765319116651,0.27696934,92638.0,92637.0,0.00222966]
[1765319117179,0.27596934,92638.0,92637.0,0.00022966]
[1765319117377,0.27696934,92638.0,92637.0,0.00122966]
[1765319117530,0.27796934,92638.0,92637.0,0.00422966]
[1765319118866,0.27696934,92638.0,92637.0,0.00322966]
[1765319119086,0.21789412,92638.0,92637.0,0.00422966]
[1765319119481,0.002,92638.0,92637.0,0.02628344]
[1765319119640,0.002,92638.0,92637.0,0.00422966]
[1765319119842,0.21689412,92638.0,92637.0,0.00322966]
[1765319120038,0.001,92638.0,92637.0,0.00322966]
[1765319120231,0.001,92638.0,92637.0,0.00122966]
[1765319120586,0.21789412,92638.0,92637.0,0.00522966]
[1765319120789,0.21689412,92638.0,92637.0,0.07388245]
[1765319121028,0.25773412,92638.0,92637.0,0.00422966]
[1765319121202,0.26773042,92638.0,92637.0,0.00422966]
[1765319121562,0.23748566,92631.0,92630.0,0.0004]
[1765319121767,0.23750897,92621.0,92620.0,0.0004]
[1765319121967,0.26564897,92621.0,92620.0,0.0004]
[1765319122167,0.29035897,92621.0,92620.0,0.0004]
[1765319122988,0.29135897,92621.0,92620.0,0.0014]
[1765319123743,0.29235897,92621.0,92620.0,0.0034]
[1765319125026,0.30843897,92621.0,92620.0,0.0024]
[1765319125239,0.30843897,92621.0,92620.0,0.0004]
[1765319126028,0.31043897,92621.0,92620.0,0.0014]
[1765319128659,0.29335897,92621.0,92620.0,0.0014]
[1765319128862,0.31043897,92621.0,92620.0,0.00188814]
[1765319129974,0.32123752,92621.0,92620.0,0.00188814]
[1765319132074,0.30415752,92621.0,92620.0,0.00188814]
[1765319132290,0.32123752,92621.0,92620.0,0.00188814]
[1765319133446,0.30415752,92621.0,92620.0,0.00188814]
[1765319133662,0.32123752,92621.0,92620.0,0.00188814]
[1765319133858,0.30415752,92621.0,92620.0,0.00188814]
[1765319134258,0.26977005,92621.0,92620.0,0.00188814]
[1765319142638,0.56047005,92621.0,92620.0,0.00188814]
[1765319142853,0.56047005,92621.0,92610.0,0.0004]
[1765319142854,1.51665336,92611.0,92610.0,0.0004]
[1765319143056,1.61963358,92611.0,92610.0,0.0004]
[1765319143660,1.6239579,92611.0,92610.0,0.0004]
[1765319144205,1.6279579,92611.0,92610.0,0.0014]
[1765319144375,1.59490768,92611.0,92610.0,0.0014]
[1765319144577,1.59690768,92611.0,92610.0,0.0014]
[1765319145766,1.69425918,92611.0,92610.0,0.0014]
[1765319146392,1.69587205,92611.0,92610.0,0.0014]
[1765319146594,1.72889341,92611.0,92610.0,0.0014]
[1765319147472,1.72889156,92611.0,92610.0,0.0014]
[1765319147714,1.79141455,92611.0,92610.0,0.0014]
[1765319147917,1.79140999,92611.0,92610.0,0.0014]
[1765319148413,1.79140999,92611.0,92610.0,0.0016872]
[1765319149263,1.60741967,92601.0,92600.0,1e-08]
[1765319149383,1.64204749,92601.0,92600.0,1e-08]
[1765319149582,1.66541749,92601.0,92600.0,1e-08]
[1765319150790,1.67141749,92601.0,92600.0,0.00100001]
[1765319151173,1.67541749,92601.0,92600.0,0.00100001]
[1765319151604,1.579223,92591.0,92590.0,0.0004]
[1765319151814,1.624523,92591.0,92590.0,0.0004]
[1765319152003,1.647893,92591.0,92590.0,0.0004]
[1765319152201,1.65221878,92591.0,92590.0,0.0004]
[1765319152611,1.66220244,92591.0,92590.0,0.0004]
[1765319152856,1.68520514,92591.0,92590.0,0.0004]
[1765319153029,1.68820514,92591.0,92590.0,0.0004]
[1765319153234,1.69020514,92591.0,92590.0,0.0004]
[1765319153635,1.68520514,92591.0,92590.0,0.0004]
[1765319154122,1.771319,92591.0,92590.0,0.0004]
[1765319156822,1.77128381,92591.0,92590.0,0.0004]
[1765319157198,1.77128381,92591.0,92590.0,0.00097455]
[1765319158704,1.57961579,92591.0,92590.0,0.00097455]
[1765319158904,1.59669579,92591.0,92590.0,0.00097455]
[1765319160553,1.57961579,92591.0,92590.0,0.00097455]
[1765319160726,0.39241579,92591.0,92590.0,0.00097455]
[1765319161045,0.26122001,92591.0,92590.0,0.00097455]
[1765319161279,0.25122371,92591.0,92590.0,0.00097455]
[1765319161471,0.23545371,92591.0,92590.0,0.00097455]
[1765319161710,0.007,92591.0,92590.0,0.00097455]
[1765319161913,0.22679241,92596.0,92592.0,0.2267999]
[1765319161914,0.0107996,92596.0,92592.0,0.2267999]
[1765319162043,0.02157522,92601.0,92599.0,0.21598465]
[1765319162260,0.0107989,92602.0,92599.0,0.21598465]
[1765319162458,0.01079855,92605.0,92599.0,0.01079925]
[1765319162800,0.22677032,92605.0,92597.0,0.21598833]
[1765319162945,0.22677032,92605.0,92601.0,0.21598]
[1765319163145,0.22677032,92605.0,92598.0,0.0458005]
[1765319163146,0.01079878,92603.0,92598.0,0.27258724]
[1765319163367,0.01079796,92610.0,92605.0,0.01079855]
[1765319163580,0.01079808,92609.0,92606.0,0.01079843]
[1765319163848,0.21595473,92612.0,92606.0,0.01079843]
[1765319163849,0.22675559,92611.0,92607.0,0.22676356]
[1765319164056,0.22675559,92611.0,92608.0,0.0701908]
[1765319164258,0.22593393,92620.0,92600.0,0.40031848]
[1765319164259,0.01079703,92618.0,92600.0,0.40031848]
[1765319164452,0.21594879,92615.0,92610.0,0.21595778]
[1765319164653,0.01079738,92615.0,92611.0,0.01079785]
[1765319164967,0.0107975,92614.0,92611.0,0.01079785]
[1765319165293,0.22674841,92614.0,92611.0,0.0367133]
[1765319165502,0.21595373,92613.0,92611.0,0.02591545]
[1765319165838,0.02157522,92613.0,92611.0,0.24187196]
[1765319166128,0.0117975,92614.0,92612.0,0.04794334]
[1765319166347,0.22774937,92614.0,92612.0,0.04794334]
[1765319166768,0.22674937,92614.0,92612.0,0.04794334]
[1765319166970,0.001,92613.0,92612.0,0.04794334]
[1765319167166,0.001,92613.0,92611.0,0.001]
[1765319167167,0.21695316,92613.0,92611.0,0.001]
[1765319167956,0.21595517,92612.0,92609.0,0.01079808]
[1765319168138,0.21595517,92612.0,92609.0,0.22675941]
[1765319168710,0.2267529,92612.0,92609.0,0.01079808]
[1765319168897,0.2267529,92612.0,92610.0,0.07018988]
[1765319169054,0.01079796,92610.0,92609.0,0.001]
[1765319169562,0.21595771,92611.0,92609.0,0.001]
[1765319169761,0.21595771,92611.0,92608.0,0.21596291]
[1765319169962,0.01079796,92610.0,92607.0,0.01079831]
[1765319170296,0.21596196,92609.0,92607.0,0.22676469]
[1765319170508,0.21596196,92609.0,92608.0,0.06913357]
[1765319170882,0.01079796,92610.0,92608.0,0.28509763]
[1765319171063,0.01179796,92610.0,92609.0,0.001]
[1765319171265,0.22775735,92610.0,92609.0,0.001]
[1765319171701,0.22875735,92610.0,92608.0,0.06913357]
[1765319171883,0.22875735,92610.0,92609.0,0.07604667]
[1765319172464,0.22675735,92610.0,92609.0,0.07604667]
[1765319172700,0.03337318,92610.0,92609.0,0.07704667]
[1765319172918,0.03537318,92610.0,92609.0,0.07704667]
[1765319173054,0.03337318,92610.0,92609.0,0.07704667]
[1765319173252,0.01379796,92610.0,92609.0,0.07704667]
[1765319173500,0.22975735,92610.0,92609.0,0.07704667]
[1765319173854,0.01379796,92610.0,92609.0,0.07704667]
[1765319174832,0.22975735,92610.0,92609.0,0.07704667]
[1765319174970,0.003,92610.0,92609.0,0.001]
[1765319175548,0.21895939,92610.0,92609.0,0.001]
[1765319176924,0.003,92610.0,92609.0,0.001]
[1765319177125,0.003,92610.0,92609.0,0.21696173]
[1765319177324,0.003,92610.0,92609.0,0.02703858]
[1765319177553,0.003,92610.0,92609.0,0.26293487]
[1765319177709,0.003,92610.0,92609.0,0.24300031]
[1765319178919,0.002,92610.0,92609.0,0.24200031]
[1765319179107,0.0107968,92620.0,92617.0,0.01079715]
[1765319179328,0.22672839,92622.0,92619.0,0.01079692]
[1765319179540,0.21593382,92621.0,92619.0,0.22673338]
[1765319179903,0.22672839,92622.0,92619.0,0.22673338]
[1765319180104,0.22672839,92622.0,92619.0,0.21593811]
[1765319180432,0.22672839,92622.0,92620.0,0.06802133]
[1765319180641,0.001,92620.0,92617.0,0.01179715]
[1765319180839,0.0117968,92620.0,92617.0,0.01179715]
[1765319181245,0.22673027,92622.0,92618.0,0.21593851]
[1765319181470,0.21593426,92621.0,92619.0,0.002]
[1765319181670,0.21593608,92620.0,92619.0,0.001]
[1765319181915,0.21593426,92621.0,92619.0,0.02601322]
[1765319182089,0.002,92620.0,92619.0,0.02601322]
[1765319182320,0.001,92620.0,92619.0,0.24195163]
[1765319182481,0.001,92620.0,92619.0,0.24295163]
[1765319182849,0.001,92620.0,92619.0,0.24195163]
[1765319183392,0.2267283,92622.0,92619.0,0.24195163]
[1765319183594,0.21592692,92624.0,92621.0,0.01079668]
[1765319183763,0.22672631,92623.0,92620.0,0.29951475]
[1765319183966,0.22672578,92623.0,92620.0,0.29951475]
[1765319184166,0.22672612,92623.0,92620.0,0.29951475]
[1765319184367,0.01079645,92623.0,92621.0,0.2159325]
[1765319184569,0.001,92622.0,92620.0,0.29951475]
[1765319184808,0.21693142,92622.0,92621.0,0.001]
[1765319185018,0.22672658,92623.0,92620.0,0.0727823]
[1765319185216,0.21593159,92622.0,92620.0,0.28871838]
[1765319185517,0.22772658,92623.0,92620.0,0.30051456]
[1765319185722,0.22772658,92623.0,92621.0,0.07647898]
[1765319185925,0.21893326,92622.0,92621.0,0.07647898]
[1765319186082,0.21593375,92621.0,92620.0,0.001]
[1765319186290,0.2189318,92622.0,92620.0,0.001]
[1765319186468,0.003,92622.0,92620.0,0.21593396]
[1765319186671,0.21893216,92622.0,92620.0,0.21693582]
[1765319186871,0.21993205,92622.0,92621.0,0.07028012]
[1765319187441,0.21693205,92622.0,92621.0,0.07028012]
[1765319187642,0.22672984,92623.0,92621.0,0.07028012]
[1765319187847,0.21593142,92622.0,92619.0,0.22673311]
[1765319188044,0.21593457,92621.0,92620.0,0.001]
[1765319188261,0.23072799,92622.0,92620.0,0.001]
[1765319188583,0.22672799,92622.0,92619.0,0.21593773]
[1765319188767,0.22672799,92622.0,92621.0,0.001]
[1765319188969,0.22672799,92622.0,92621.0,0.07028044]
[1765319189725,0.22672799,92622.0,92621.0,0.07128044]
[1765319190206,0.22672799,92622.0,92621.0,0.07028044]
[1765319190413,0.22772799,92622.0,92621.0,0.001]
[1765319191044,0.23072799,92622.0,92621.0,0.001]
[1765319191280,0.29253321,92622.0,92621.0,0.001]
[1765319191514,0.25230321,92622.0,92621.0,0.001]
[1765319191728,0.01479657,92622.0,92621.0,0.001]
[1765319191925,0.01479657,92622.0,92621.0,0.04860698]
[1765319192393,0.23072799,92622.0,92621.0,0.04860698]
[1765319193762,0.23072799,92622.0,92621.0,0.001]
[1765319195978,0.004,92622.0,92621.0,0.001]
[1765319196176,0.21993142,92622.0,92621.0,0.001]
[1765319202714,0.28173664,92622.0,92621.0,0.001]
[1765319202916,0.26177429,92622.0,92621.0,0.001]
[1765319205324,0.27177059,92622.0,92621.0,0.001]
[1765319205521,0.2937374,92622.0,92621.0,0.001]
[1765319206115,0.21597572,92603.0,92597.0,0.01079948]
[1765319206320,0.21597572,92603.0,92596.0,0.22678948]
[1765319206577,0.21597572,92603.0,92597.0,0.22678834]
[1765319206760,0.21597572,92603.0,92597.0,0.22678869]
[1765319207353,0.21597572,92603.0,92602.0,0.04669084]
[1765319207613,0.21597572,92603.0,92602.0,0.00022979]
[1765319207766,0.21697572,92603.0,92602.0,0.00022979]
[1765319207968,0.21697572,92603.0,92602.0,0.00122979]
[1765319208175,0.21797572,92603.0,92602.0,0.00122979]
[1765319208772,0.002,92603.0,92602.0,0.21720784]
[1765319208973,0.002,92603.0,92602.0,0.00122979]
[1765319209196,0.002,92603.0,92602.0,0.26484721]
[1765319210271,0.21797572,92603.0,92602.0,0.04886916]
[1765319211223,0.002,92603.0,92602.0,0.00122979]
[1765319211524,0.21797572,92603.0,92602.0,0.00122979]
[1765319212682,1.28823572,92603.0,92602.0,0.00122979]
[1765319212909,0.70753202,92603.0,92602.0,0.00122979]
[1765319213546,0.99723202,92603.0,92602.0,0.00122979]
[1765319213816,1.58893202,92603.0,92602.0,0.00122979]
[1765319214036,1.6220627,92603.0,92602.0,0.00122979]
[1765319214265,1.6210627,92603.0,92602.0,0.00122979]
[1765319214464,1.58893202,92603.0,92602.0,0.00022979]
[1765319214824,1.58693202,92603.0,92602.0,0.00022979]
[1765319215050,1.59193202,92603.0,92602.0,0.00122979]
[1765319215564,1.59193202,92603.0,92602.0,0.00022979]
[1765319215565,1.59093202,92603.0,92602.0,0.00022979]
[1765319215786,1.59293202,92603.0,92602.0,0.00022979]
[1765319219541,1.6259913,92603.0,92602.0,0.00022979]
[1765319220542,1.6199913,92603.0,92602.0,0.00022979]
[1765319220748,1.6309913,92603.0,92602.0,0.00022979]
[1765319221614,1.6139113,92603.0,92602.0,0.00022979]
[1765319221987,1.6309913,92603.0,92602.0,0.00022979]
[1765319224092,1.63531627,92603.0,92602.0,0.00022979]
[1765319224760,1.63531627,92603.0,92602.0,1e-08]
[1765319225495,1.69781316,92603.0,92602.0,1e-08]
[1765319225816,0.21602704,92581.0,92580.0,0.0004]
[1765319225972,0.38104376,92581.0,92580.0,0.0004]
[1765319226172,0.40521376,92581.0,92580.0,0.0004]
[1765319226358,0.40521376,92581.0,92580.0,0.0010321]
[1765319226975,0.40621376,92581.0,92580.0,0.0010321]
[1765319227444,0.69891376,92581.0,92580.0,0.0010321]
[1765319227988,1.69891376,92581.0,92580.0,0.0010321]
[1765319228972,1.69891376,92581.0,92560.0,0.0004]
[1765319228973,1.5283256,92571.0,92560.0,0.0004]
[1765319229183,1.5573356,92571.0,92560.0,0.0004]
[1765319229393,1.5798656,92571.0,92560.0,0.0004]
[1765319229534,1.58147847,92571.0,92560.0,0.0004]
[1765319230145,1.58347847,92571.0,92560.0,0.0004]
[1765319230562,1.58747847,92571.0,92560.0,0.0004]
[1765319234336,1.60455847,92571.0,92560.0,0.0004]
[1765319234711,1.60455847,92571.0,92570.0,0.00068739]
[1765319240475,1.58747847,92571.0,92570.0,0.00068739]
[1765319240676,1.60455847,92571.0,92570.0,0.00068739]
[1765319242368,1.61456766,92571.0,92570.0,0.00068739]
[1765319243465,1.59748766,92571.0,92570.0,0.00068739]
[1765319243717,1.61456766,92571.0,92570.0,0.00068739]
[1765319244304,1.63763992,92571.0,92570.0,0.00068739]
[1765319244908,1.62055992,92571.0,92570.0,0.00068739]
[1765319245231,1.63763992,92571.0,92570.0,0.00068739]
[1765319247522,1.62055992,92571.0,92570.0,0.00068739]
[1765319247836,1.63763992,92571.0,92570.0,0.00068739]
[1765319248190,1.63163992,92571.0,92570.0,0.00068739]
[1765319248411,1.63463992,92571.0,92570.0,0.00068739]
[1765319248687,1.62355992,92571.0,92570.0,0.00068739]
[1765319248890,1.62357725,92571.0,92570.0,0.00068739]
[1765319249114,1.64065725,92571.0,92570.0,0.00068739]
[1765319249490,1.62357725,92571.0,92570.0,0.00068739]
[1765319249762,1.64065725,92571.0,92570.0,0.00068739]
[1765319250927,1.62357725,92571.0,92570.0,0.00068739]
[1765319251127,1.64065725,92571.0,92570.0,0.00068739]
[1765319254190,1.66944178,92571.0,92570.0,0.00068739]
[1765319255020,1.65236178,92571.0,92570.0,0.00068739]
[1765319255226,1.19265725,92571.0,92570.0,0.00068739]
[1765319255593,1.22965725,92571.0,92570.0,0.00068739]
[1765319256693,1.23715725,92571.0,92570.0,0.00068739]
[1765319257563,1.23635725,92571.0,92570.0,0.00068739]
[1765319258364,1.21927725,92571.0,92570.0,0.00068739]
[1765319258565,1.64065725,92571.0,92570.0,0.00068739]
[1765319258790,1.19065725,92571.0,92570.0,0.00068739]
[1765319259668,1.62357725,92571.0,92570.0,0.00068739]
[1765319259865,1.64065725,92571.0,92570.0,0.00068739]
[1765319260823,1.21697725,92571.0,92570.0,0.00068739]
[1765319261036,1.22325725,92571.0,92570.0,0.00068739]
[1765319261639,1.64065725,92571.0,92570.0,0.00068739]
[1765319261784,1.23755725,92571.0,92570.0,0.00068739]
[1765319261990,0.21609078,92554.0,92551.0,0.21609654]
[1765319262288,0.21609071,92554.0,92552.0,0.06434655]
[1765319262529,0.21609272,92553.0,92550.0,0.20046111]
[1765319262732,0.22689521,92554.0,92551.0,0.01080485]
[1765319262933,0.22689521,92554.0,92552.0,0.00051742]
[1765319263254,0.01080462,92553.0,92550.0,0.01080497]
[1765319263457,0.22689702,92553.0,92550.0,0.22690228]
[1765319263662,0.22689702,92553.0,92551.0,0.06807193]
[1765319263804,0.22688777,92557.0,92552.0,0.22689723]
[1765319264009,0.001,92554.0,92552.0,0.22689723]
[1765319264257,0.003,92554.0,92552.0,0.22689723]
[1765319264410,0.001,92554.0,92552.0,0.22689723]
[1765319264610,0.21709006,92554.0,92553.0,0.07703861]
[1765319264812,0.21609748,92551.0,92549.0,0.01080508]
[1765319265112,0.01080485,92551.0,92548.0,0.22690703]
[1765319265346,0.22690198,92551.0,92548.0,0.22690703]
[1765319265563,0.22690198,92551.0,92548.0,0.0108052]
[1765319265763,0.22690198,92551.0,92548.0,0.22690818]
[1765319266082,0.22690631,92550.0,92549.0,0.06915442]
[1765319266247,0.22690631,92550.0,92547.0,0.22691039]
[1765319266840,0.22690631,92550.0,92548.0,0.21610379]
[1765319267039,0.22690631,92550.0,92547.0,0.22691039]
[1765319267515,0.001,92550.0,92548.0,0.21610193]
[1765319267647,0.001,92550.0,92549.0,0.26364505]
[1765319267848,0.001,92550.0,92549.0,0.04754331]
[1765319268115,0.001,92550.0,92549.0,0.26364505]
[1765319268278,0.001,92551.0,92549.0,0.26364505]
[1765319268741,0.001,92550.0,92549.0,0.26364505]
[1765319269006,0.001,92551.0,92550.0,0.2160994]
[1765319269210,0.22689728,92553.0,92550.0,0.29108675]
[1765319269464,0.21609223,92554.0,92550.0,0.30246535]
[1765319269677,0.22689228,92555.0,92551.0,0.01080485]
[1765319269887,0.22689228,92555.0,92551.0,0.22690014]
[1765319270110,0.22689228,92555.0,92552.0,0.21609394]
[1765319270336,0.22689228,92555.0,92550.0,0.08579232]
[1765319270337,0.21609074,92554.0,92553.0,0.059794]
[1765319270547,0.22689228,92555.0,92552.0,0.01080473]
[1765319270757,0.22689228,92555.0,92553.0,0.21609234]
[1765319271000,0.01080356,92562.0,92553.0,0.01080462]
[1765319271215,0.001,92555.0,92554.0,0.21609006]
[1765319271429,0.001,92555.0,92554.0,0.26146927]
[1765319271641,0.001,92555.0,92554.0,0.28267325]
[1765319272174,0.01080286,92568.0,92565.0,0.21606301]
[1765319272520,0.01080286,92568.0,92566.0,0.2160618]
[1765319273368,0.01180286,92568.0,92566.0,0.2160618]
[1765319273539,0.01180286,92568.0,92567.0,0.06806075]
[1765319273942,0.21705738,92568.0,92567.0,0.06806075]
[1765319274126,0.21805738,92568.0,92567.0,0.06806075]
[1765319274649,0.21606345,92566.0,92563.0,0.21606855]
[1765319275076,0.003,92568.0,92563.0,0.01080345]
[1765319275278,0.002,92568.0,92567.0,0.21605971]
[1765319275931,0.003,92568.0,92567.0,0.21705971]
[1765319276125,0.001,92568.0,92567.0,0.21705971]
[1765319276456,0.001,92568.0,92567.0,0.28952389]
[1765319277064,0.001,92568.0,92567.0,0.36204875]
[1765319277544,0.003,92568.0,92567.0,0.36304875]
[1765319278467,0.01079866,92604.0,92600.0,0.22678181]
[1765319278786,0.22677695,92602.0,92601.0,0.02375814]
[1765319279135,0.01079925,92599.0,92596.0,0.0107996]
[1765319279376,0.2267869,92598.0,92595.0,0.01079971]
[1765319279576,0.22678451,92599.0,92596.0,0.21599205]
[1765319279734,0.01079925,92599.0,92596.0,0.22679165]
[1765319279946,0.21598531,92599.0,92596.0,0.22679165]
[1765319280143,0.21798559,92599.0,92597.0,0.09163244]
[1765319280476,0.21898524,92599.0,92597.0,0.09163244]
[1765319280680,0.003,92599.0,92597.0,0.09163244]
[1765319280875,0.003,92599.0,92597.0,0.30762197]
[1765319281086,0.001,92599.0,92597.0,0.30762135]
[1765319281417,0.002,92599.0,92598.0,0.04537921]
[1765319281574,0.002,92599.0,92598.0,0.26136659]
[1765319281744,0.003,92599.0,92598.0,0.26136659]
[1765319282296,0.002,92599.0,92598.0,0.26136659]
[1765319282656,0.001,92599.0,92598.0,0.05617857]
[1765319282863,0.003,92599.0,92598.0,0.05717857]
[1765319283066,0.002,92599.0,92598.0,0.05717857]
[1765319283489,0.002,92599.0,92598.0,0.05817857]
[1765319284953,0.002,92599.0,92598.0,0.27416595]
[1765319286125,0.002,92599.0,92598.0,0.04737921]
[1765319286373,0.25760505,92599.0,92598.0,0.002]
[1765319286569,0.27918027,92599.0,92598.0,0.002]
[1765319286796,0.26921422,92599.0,92598.0,0.002]
[1765319298714,0.26921422,92599.0,92576.0,0.01080193]
[1765319298715,0.2160348,92578.0,92576.0,0.01080193]
[1765319298958,0.2160348,92578.0,92576.0,0.22684044]
[1765319299161,0.01080158,92579.0,92577.0,0.21603619]
[1765319299377,0.21600894,92589.0,92577.0,0.21603619]
[1765319299378,0.01080065,92587.0,92582.0,0.01080123]
[1765319299678,0.21601827,92585.0,92582.0,0.01080123]
[1765319300031,0.010801,92584.0,92581.0,0.01080135]
[1765319300228,0.01080111,92583.0,92581.0,0.2160269]
[1765319300435,0.22682353,92583.0,92582.0,0.05227988]
[1765319300665,0.21601067,92589.0,92582.0,0.05227988]
[1765319300827,0.01080053,92588.0,92584.0,0.22682035]
[1765319301165,0.01180088,92585.0,92582.0,0.001]
[1765319301369,0.01080088,92585.0,92582.0,0.01080123]
[1765319301527,0.001,92583.0,92582.0,0.001]
[1765319301731,0.001,92583.0,92582.0,0.002]
[1765319301930,0.22681695,92586.0,92583.0,0.21602221]
[1765319302145,0.01080076,92586.0,92584.0,0.2170191]
[1765319302346,0.01080076,92586.0,92584.0,0.001]
[1765319302539,0.01080076,92586.0,92582.0,0.04764542]
[1765319302540,0.01080088,92585.0,92582.0,0.04764542]
[1765319302744,0.21602212,92584.0,92582.0,0.04764542]
[1765319302957,0.21602212,92584.0,92579.0,0.22683111]